fUSD/lending_fUSD_20251222
["ID","MTS","AMOUNT","RATE_DAILY","PERIOD"]
[399447387,1766362259789,-6529.0,0.00038603,2]
[399447388,1766362259798,-2429.0,0.00038603,2]
[399447389,1766362259809,-4803.0,0.00038603,2]
[399447390,1766362259819,-150.0,0.0003861,30]
[399447391,1766362259829,-150.0,0.0003861,30]
[399447392,1766362259839,-1318.66,0.00038767,2]
[399447393,1766362259849,-200.00000001,0.000388,120]
[399447394,1766362259859,-2000.0,0.00038805,3]
[399447395,1766362259869,-2000.0,0.00038805,3]
[399447396,1766362259879,-1126.9714,0.00038805,3]
[399447397,1766362259889,-2000.0,0.00038805,3]
[399447398,1766362259899,-2000.0,0.00038805,3]
[399447399,1766362259908,-1343.0,0.00038817,20]
[399447400,1766362259918,-15027.71172461,0.00038874,2]
[399447401,1766362259929,-883.13763973,0.0003888,120]
[399447402,1766362259938,-3557.4207,0.00038888,30]
[399447403,1766362259948,-800.0,0.000389,4]
[399447404,1766362259959,-168.5702354,0.000389,2]
[399447405,1766362259969,-4547.28318666,0.000389,2]
[399447406,1766362259978,-500.0,0.00038904,14]
[399447407,1766362259988,-500.0,0.00038904,14]
[399447408,1766362259999,-14375.1,0.00038904,2]
[399447409,1766362260009,-210.0,0.0003891,30]
[399447410,1766362260019,-893.63,0.00038969,60]
[399447411,1766362260029,-300.0,0.0003897,2]
[399447412,1766362260039,-300.0,0.0003897,2]
[399447413,1766362260049,-1000.0,0.0003897,2]
[399447414,1766362260060,-400.0,0.0003897,2]
[399447415,1766362260071,-3437.85972913,0.00038973,3]
[399447416,1766362260082,-500.0,0.00038985,60]
[399447417,1766362260092,-26197.17177349,0.00038986,2]
[399447418,1766362260102,-32046.59088533,0.00038986,2]
[399447419,1766362260112,-11840.36914781,0.00038986,4]
[399447420,1766362260122,-150.0,0.00038999,2]
[399447421,1766362260132,-893.63,0.00038999,60]
[399447422,1766362260142,-893.63,0.00038999,60]
[399447423,1766362260152,-893.63,0.00038999,60]
[399447424,1766362260162,-893.63,0.00038999,60]
[399447425,1766362260171,-893.63,0.00038999,60]
[399447426,1766362260181,-893.63,0.00038999,60]
[399447427,1766362260191,-893.63,0.00038999,60]
[399447428,1766362260203,-893.63,0.00038999,60]
[399447429,1766362260213,-893.63,0.00038999,60]
[399447430,1766362260224,-893.63,0.00038999,60]
[399447431,1766362260235,-893.63,0.00038999,60]
[399447432,1766362260245,-893.63,0.00038999,60]
[399447433,1766362260255,-893.63,0.00038999,60]
[399447434,1766362260265,-893.68,0.00038999,60]
[399447435,1766362260275,-500.0,0.00038999,60]
[399447436,1766362260285,-500.0,0.00038999,60]
[399447437,1766362260295,-500.0,0.00038999,60]
[399447438,1766362260305,-500.0,0.00038999,60]
[399447439,1766362260316,-500.0,0.00038999,60]
[399447440,1766362260325,-500.0,0.00038999,60]
[399447441,1766362260335,-500.0,0.00038999,60]
[399447442,1766362260345,-500.0,0.00038999,60]
[399447443,1766362260356,-418.27254915,0.00038999,60]
[399447444,1766362260366,-50000.0,0.00039,39]
[399447445,1766362260376,-50000.0,0.00039,29]
[399447446,1766362260387,-50000.0,0.00039,19]
[399447447,1766362260397,-324924.56934032,0.00039,2]
[399447448,1766362261203,-334.96069996,0.00039,2]
[399447449,1766362261215,-2064.347687,0.00039,2]
[399447450,1766362261226,-1330.690429,0.00039,2]
[399447451,1766362261236,-758.87499981,0.00039,2]
[399447452,1766362261247,-582.87756505,0.00039,2]
[399447453,1766362261258,-677.2049935,0.00039,2]
[399447454,1766362261435,-1000.0,0.00010791,2]
[399447455,1766362261446,-359.48,0.00013699,2]
[399447456,1766362261455,-564.0,0.00020603,2]
[399447457,1766362261464,-564.0,0.00023603,2]
[399447458,1766362261473,-564.0,0.00026603,2]
[399447459,1766362261482,-1905974.92227024,0.00039,2]
[399447460,1766362261508,-999.0,0.000109,2]
[399447461,1766362261520,-552.6140501,0.000109,2]
[399447462,1766362261529,-1.24164514,0.00039,2]
[399447463,1766362261703,-564.0,0.00029603,2]
[399447464,1766362261712,-564.0,0.00032603,2]
[399447465,1766362261722,-558.0,0.00035603,2]
[399447466,1766362261731,-178.44,0.00036986,2]
[399447467,1766362261741,-28.00361061,0.00039,2]
[399447468,1766362261752,-1197.0,0.00039,2]
[399447469,1766362261767,-473.50935003,0.00039,2]
[399447477,1766362297418,307.271,0.00034995,40]
[399447478,1766362316349,500.0,0.00035616,30]
[399447481,1766362339560,500.0,9.555e-05,2]
[399447482,1766362339616,500.0,9.555e-05,2]
[399447483,1766362339667,500.0,9.555e-05,2]
[399447484,1766362339737,500.0,9.555e-05,2]
[399447485,1766362339850,500.0,9.555e-05,2]
[399447486,1766362339904,500.0,9.555e-05,2]
[399447487,1766362339954,500.0,9.555e-05,2]
[399447488,1766362340032,500.0,9.555e-05,2]
[399447489,1766362340091,500.0,9.555e-05,2]
[399447491,1766362354006,423.7915,9.446e-05,2]
[399447492,1766362356162,500.0,9.555e-05,2]
[399447495,1766362362991,218.12496766,9.555e-05,2]
[399447497,1766362376664,4358.09353234,9.556e-05,2]
[399447498,1766362376703,10000.01,9.556e-05,2]
[399447499,1766362376740,10000.01,9.556e-05,2]
[399447500,1766362376777,10000.01,9.556e-05,2]
[399447501,1766362376813,10000.01,9.556e-05,2]
[399447502,1766362376850,10000.01,9.556e-05,2]
[399447503,1766362376899,10000.01,9.556e-05,2]
[399447504,1766362376937,10000.01,9.556e-05,2]
[399447505,1766362376974,10000.01,9.556e-05,2]
[399447506,1766362377010,10000.01,9.556e-05,2]
[399447509,1766362408998,-486.25106508,9.555e-05,2]
[399447510,1766362409367,-2267.05,9.507e-05,2]
[399447512,1766362420234,-1648.25653739,9.555e-05,2]
[399447513,1766362420270,-1268.43613732,9.555e-05,2]
[399447514,1766362420625,-8660.03252042,9.556e-05,2]
[399447515,1766362420992,-10000.01,9.556e-05,2]
[399447516,1766362421233,-10000.01,9.556e-05,2]
[399447517,1766362421534,-10000.01,9.556e-05,2]
[399447518,1766362421775,-10000.01,9.556e-05,2]
[399447519,1766362422170,-10000.01,9.556e-05,2]
[399447520,1766362422352,-10000.01,9.556e-05,2]
[399447527,1766362517216,-300.0,9.554e-05,2]
[399447528,1766362517254,-1200.0,9.554e-05,2]
[399447529,1766362517291,-150.0,9.554e-05,2]
[399447530,1766362517335,-500.0,9.555e-05,2]
[399447531,1766362517380,-500.0,9.555e-05,2]
[399447532,1766362517425,-500.0,9.555e-05,2]
[399447533,1766362517468,-500.0,9.555e-05,2]
[399447534,1766362517514,-500.0,9.555e-05,2]
[399447535,1766362517555,-303.10909246,9.555e-05,2]
[399447536,1766362517604,-500.0,9.555e-05,2]
[399447537,1766362517879,-93.79181508,9.555e-05,2]
[399447538,1766362517926,-406.20818492,9.555e-05,2]
[399447539,1766362517972,-500.0,9.555e-05,2]
[399447540,1766362518016,-500.0,9.555e-05,2]
[399447541,1766362518064,-500.0,9.555e-05,2]
[399447542,1766362518106,-500.0,9.555e-05,2]
[399447543,1766362518148,-500.0,9.555e-05,2]
[399447544,1766362518191,-348.15197908,9.555e-05,2]
[399447545,1766362518435,-2743.5214331,9.556e-05,2]
[399447546,1766362518466,-747.7682389,9.556e-05,2]
[399447547,1766362518509,-3765.1988949,9.556e-05,2]
[399447548,1766362518548,-501.65512545,9.556e-05,2]
[399447549,1766362518583,-579.48252053,9.556e-05,2]
[399447550,1766362518617,-120.45717351,9.556e-05,2]
[399447551,1766362518680,-66.42257122,9.556e-05,2]
[399447552,1766362518690,-2223.27228129,9.556e-05,2]
[399447553,1766362518718,-3765.1988949,9.556e-05,2]
[399447554,1766362518746,-501.65512545,9.556e-05,2]
[399447555,1766362518769,-579.48252053,9.556e-05,2]
[399447556,1766362518801,-186.87974473,9.556e-05,2]
[399447557,1766362518890,-10000.01,9.556e-05,2]
[399447558,1766362528399,1000.0,0.00035514,120]
[399447560,1766362557253,-500.0,9.555e-05,2]
[399447561,1766362557295,-500.0,9.555e-05,2]
[399447562,1766362557339,-500.0,9.555e-05,2]
[399447563,1766362557382,-500.0,9.555e-05,2]
[399447564,1766362557427,-500.0,9.555e-05,2]
[399447565,1766362557470,-500.0,9.555e-05,2]
[399447566,1766362557512,-500.0,9.555e-05,2]
[399447567,1766362557558,-500.0,9.555e-05,2]
[399447568,1766362557604,-500.0,9.555e-05,2]
[399447569,1766362557645,-500.0,9.555e-05,2]
[399447570,1766362558357,-500.0,9.555e-05,2]
[399447571,1766362558407,-500.0,9.555e-05,2]
[399447572,1766362558457,-500.0,9.555e-05,2]
[399447573,1766362558505,-500.0,9.555e-05,2]
[399447574,1766362558552,-500.0,9.555e-05,2]
[399447575,1766362558608,-500.0,9.555e-05,2]
[399447576,1766362558651,-500.0,9.555e-05,2]
[399447577,1766362558705,-500.0,9.555e-05,2]
[399447578,1766362558749,-500.0,9.555e-05,2]
[399447579,1766362558792,-500.0,9.555e-05,2]
[399447580,1766362559066,-0.01,9.555e-05,2]
[399447581,1766362559087,-0.01,9.555e-05,2]
[399447584,1766362602505,-499.98,9.555e-05,2]
[399447585,1766362602546,-500.0,9.555e-05,2]
[399447586,1766362602591,-500.0,9.555e-05,2]
[399447587,1766362602634,-500.0,9.555e-05,2]
[399447588,1766362602680,-500.0,9.555e-05,2]
[399447589,1766362602725,-500.0,9.555e-05,2]
[399447590,1766362602768,-381.56401303,9.555e-05,2]
[399447591,1766362602812,-500.0,9.555e-05,2]
[399447592,1766362602856,-500.0,9.555e-05,2]
[399447593,1766362602890,-150.40370188,9.555e-05,2]
[399447594,1766362602931,-359.54096545,9.555e-05,2]
[399447595,1766362603268,-217.03263928,9.555e-05,2]
[399447596,1766362657058,1000.0,0.00035514,120]
[399447744,1766362897422,245.816,0.00034995,40]
[399447748,1766362926082,5450.0,0.00035616,30]
[399447749,1766362926622,1744.000001,0.00035616,30]
[399447750,1766362928320,250.0,0.00035616,30]
[399447751,1766362928919,250.0,0.00035616,30]
[399447752,1766362929518,250.0,0.00035616,30]
[399447753,1766362930163,250.0,0.00035616,30]
[399447754,1766362930839,250.0,0.00035616,30]
[399447755,1766362931503,250.0,0.00035616,30]
[399447756,1766362932138,250.0,0.00035616,30]
[399447757,1766362932781,250.0,0.00035616,30]
[399447772,1766363005684,1600.0,9.382e-05,2]
[399447781,1766363118839,238.35336158,9e-05,2]
[399447783,1766363122185,500.0,0.00035616,120]
[399447792,1766363133247,2500.0,9.456e-05,2]
[399447793,1766363141140,642.82529507,0.0002,30]
[399447797,1766363176111,6357.17470493,0.000209,30]
[399447828,1766363196523,1500.0,9.346e-05,2]
[399447829,1766363200949,4161.65663842,9.346e-05,2]
[399447830,1766363201031,10000.01,9.346e-05,2]
[399447831,1766363201108,10000.01,9.346e-05,2]
[399447832,1766363201184,10000.01,9.346e-05,2]
[399447833,1766363201262,10000.01,9.346e-05,2]
[399447834,1766363201336,10000.01,9.346e-05,2]
[399447835,1766363201410,10000.01,9.346e-05,2]
[399447836,1766363201481,10000.01,9.346e-05,2]
[399447837,1766363201550,10000.01,9.346e-05,2]
[399447838,1766363201622,10000.01,9.346e-05,2]
[399447839,1766363214421,-150.01083793,9.346e-05,2]
[399447840,1766363224119,-300.0,9.345e-05,2]
[399447841,1766363224214,-150.0,9.345e-05,2]
[399447843,1766363225908,-9100.01,9.346e-05,2]
[399447846,1766363238011,-183.850552,9.298e-05,2]
[399447847,1766363238106,-1102.34063428,9.346e-05,2]
[399447848,1766363238407,-7427.62762744,9.346e-05,2]
[399447849,1766363238543,-10000.01,9.346e-05,2]
[399447850,1766363239075,-10000.01,9.346e-05,2]
[399447851,1766363239412,-10000.01,9.346e-05,2]
[399447852,1766363239817,-10000.01,9.346e-05,2]
[399447853,1766363240377,-10000.01,9.346e-05,2]
[399447854,1766363240723,-10000.01,9.346e-05,2]
[399447855,1766363253710,-10000.01,9.346e-05,2]
[399447856,1766363254296,-10000.01,9.346e-05,2]
[399447901,1766363432153,-1873.48438079,9.298e-05,2]
[399447902,1766363432164,-387.11639996,9.298e-05,2]
[399447903,1766363432175,-1153.65769635,9.298e-05,2]
[399447904,1766363432186,-685.3045229,9.298e-05,2]
[399447905,1766363432196,-995.36283323,9.344e-05,2]
[399447906,1766363432207,-204.63716677,9.344e-05,2]
[399447907,1766363432216,-300.0,9.344e-05,2]
[399447908,1766363432227,-1188.99688678,9.345e-05,2]
[399447909,1766363432238,-11.00311322,9.345e-05,2]
[399447910,1766363432248,-300.0,9.345e-05,2]
[399447911,1766363432257,-258.18327358,9.345e-05,2]
[399447912,1766363432275,-41.81672642,9.345e-05,2]
[399447913,1766363432284,-150.0,9.345e-05,2]
[399447914,1766363432294,-250.0,9.345e-05,2]
[399447915,1766363432304,-500.0,9.345e-05,2]
[399447916,1766363432313,-271.52566029,9.345e-05,2]
[399447917,1766363432323,-500.0,9.345e-05,2]
[399447918,1766363432332,-500.0,9.345e-05,2]
[399447919,1766363432342,-500.0,9.345e-05,2]
[399447920,1766363432351,-500.0,9.345e-05,2]
[399447921,1766363432363,-500.0,9.345e-05,2]
[399447922,1766363432372,-500.0,9.345e-05,2]
[399447923,1766363432381,-500.0,9.345e-05,2]
[399447924,1766363432390,-500.0,9.345e-05,2]
[399447925,1766363432399,-500.0,9.345e-05,2]
[399447926,1766363432408,-500.0,9.345e-05,2]
[399447927,1766363432418,-500.0,9.345e-05,2]
[399447928,1766363432427,-500.0,9.345e-05,2]
[399447929,1766363432437,-500.0,9.345e-05,2]
[399447931,1766363432446,-500.0,9.345e-05,2]
[399447932,1766363432455,-500.0,9.345e-05,2]
[399447933,1766363432464,-500.0,9.345e-05,2]
[399447934,1766363432474,-500.0,9.345e-05,2]
[399447935,1766363432483,-500.0,9.345e-05,2]
[399447936,1766363432492,-500.0,9.345e-05,2]
[399447938,1766363432502,-500.0,9.345e-05,2]
[399447939,1766363432510,-500.0,9.345e-05,2]
[399447940,1766363432519,-500.0,9.345e-05,2]
[399447941,1766363432528,-500.0,9.345e-05,2]
[399447942,1766363432538,-500.0,9.345e-05,2]
[399447943,1766363432548,-500.0,9.345e-05,2]
[399447944,1766363432557,-500.0,9.345e-05,2]
[399447945,1766363432567,-500.0,9.345e-05,2]
[399447946,1766363432576,-500.0,9.345e-05,2]
[399447947,1766363432585,-500.0,9.345e-05,2]
[399447948,1766363432594,-500.0,9.345e-05,2]
[399447949,1766363432603,-500.0,9.345e-05,2]
[399447950,1766363432615,-500.0,9.345e-05,2]
[399447951,1766363432624,-500.0,9.345e-05,2]
[399447952,1766363432633,-500.0,9.345e-05,2]
[399447953,1766363432643,-500.0,9.345e-05,2]
[399447954,1766363432652,-500.0,9.345e-05,2]
[399447955,1766363432661,-500.0,9.345e-05,2]
[399447956,1766363432670,-500.0,9.345e-05,2]
[399447957,1766363432679,-500.0,9.345e-05,2]
[399447958,1766363432688,-500.0,9.345e-05,2]
[399447959,1766363432697,-500.0,9.345e-05,2]
[399447960,1766363432706,-500.0,9.345e-05,2]
[399447961,1766363432716,-500.0,9.345e-05,2]
[399447962,1766363432726,-500.0,9.345e-05,2]
[399447963,1766363432735,-500.0,9.345e-05,2]
[399447964,1766363432744,-500.0,9.345e-05,2]
[399447965,1766363432753,-500.0,9.345e-05,2]
[399447966,1766363432762,-500.0,9.345e-05,2]
[399447967,1766363432771,-500.0,9.345e-05,2]
[399447968,1766363432779,-500.0,9.345e-05,2]
[399447969,1766363432789,-500.0,9.345e-05,2]
[399447970,1766363432798,-500.0,9.345e-05,2]
[399447971,1766363432807,-500.0,9.345e-05,2]
[399447972,1766363432817,-500.0,9.345e-05,2]
[399447973,1766363433137,-500.0,9.345e-05,2]
[399447974,1766363433170,-500.0,9.345e-05,2]
[399447975,1766363433180,-500.0,9.345e-05,2]
[399447976,1766363433189,-500.0,9.345e-05,2]
[399447977,1766363433199,-500.0,9.345e-05,2]
[399447978,1766363433208,-500.0,9.345e-05,2]
[399447979,1766363433217,-500.0,9.345e-05,2]
[399447980,1766363433225,-500.0,9.345e-05,2]
[399447981,1766363433234,-500.0,9.345e-05,2]
[399447982,1766363433243,-500.0,9.345e-05,2]
[399447983,1766363433253,-500.0,9.345e-05,2]
[399447984,1766363433262,-500.0,9.345e-05,2]
[399447985,1766363433271,-500.0,9.345e-05,2]
[399447986,1766363433281,-500.0,9.345e-05,2]
[399447987,1766363433291,-500.0,9.345e-05,2]
[399447988,1766363433300,-64245.91489621,9.346e-05,2]
[399447989,1766363433313,-296.72550237,9.365e-05,2]
[399447990,1766363433323,-7855.9782019,9.388e-05,2]
[399447991,1766363433332,-51925.04636083,9.398e-05,2]
[399447992,1766363433345,-924.74470534,9.398e-05,2]
[399447993,1766363433355,-975.08996529,9.398e-05,2]
[399447994,1766363433367,-2662.04405425,9.398e-05,2]
[399447995,1766363433378,-6436.20405953,9.398e-05,2]
[399447996,1766363433388,-2548.73865149,9.398e-05,2]
[399447997,1766363433399,-297.04785907,9.398e-05,2]
[399447998,1766363433410,-4934.8881611,9.398e-05,2]
[399447999,1766363433419,-423.52249745,9.398e-05,2]
[399448000,1766363433428,-500.0,9.451e-05,2]
[399448001,1766363433437,-407.91290909,9.455e-05,2]
[399448002,1766363433446,-216.22988578,9.455e-05,2]
[399448003,1766363433456,-51306.3181758,9.456e-05,2]
[399448004,1766363433467,-19155.70681883,9.456e-05,2]
[399448005,1766363433478,-2600.48728982,9.456e-05,2]
[399448006,1766363433489,-2151.7138018,9.456e-05,2]
[399448007,1766363433500,-1023.31953828,9.456e-05,2]
[399448008,1766363433511,-12567.27327547,9.456e-05,2]
[399448009,1766363433521,-2500.0,9.456e-05,2]
[399448010,1766363433531,-163.3877,9.456e-05,2]
[399448011,1766363433540,-166.66,9.456e-05,2]
[399448012,1766363433549,-161.45,9.554e-05,2]
[399448013,1766363433558,-2127.57,9.555e-05,2]
[399448014,1766363433568,-7326.32040338,9.555e-05,2]
[399448015,1766363433581,-1552.85296963,9.555e-05,2]
[399448016,1766363433592,-491.21182123,9.555e-05,2]
[399448017,1766363433604,-629.60480576,9.555e-05,2]
[399448018,1766363433615,-150.99,9.555e-05,2]
[399448019,1766363433624,-1969.40519424,9.555e-05,2]
[399448020,1766363433636,-979.31163854,9.555e-05,2]
[399448043,1766363438282,-7051.27316722,9.555e-05,2]
[399448044,1766363438292,-150.99,9.555e-05,2]
[399448045,1766363438301,-2023.23,9.555e-05,2]
[399448046,1766363438311,-9999.99,9.555e-05,2]
[399448047,1766363438321,-299.99,9.555e-05,2]
[399448048,1766363438331,-999.99,9.555e-05,2]
[399448049,1766363438340,-499.99,9.555e-05,2]
[399448050,1766363438349,-9999.99,9.555e-05,2]
[399448051,1766363438359,-4999.99,9.555e-05,2]
[399448052,1766363438369,-1137251.247706,9.556e-05,2]
[399448053,1766363438379,-43730.7058594,9.556e-05,2]
[399448054,1766363438390,-13312.29,9.67e-05,2]
[399448055,1766363438404,-166.66,9.768e-05,2]
[399448056,1766363438414,-2127.57,9.828e-05,2]
[399448057,1766363438423,-631.78490398,0.0001,2]
[399448058,1766363438433,-151.0,0.0001,2]
[399448059,1766363438443,-151.0,0.0001,2]
[399448060,1766363438453,-151.0,0.0001,2]
[399448061,1766363438463,-151.0,0.0001,2]
[399448062,1766363438472,-151.0,0.0001,2]
[399448063,1766363438482,-151.0,0.0001,2]
[399448064,1766363438492,-151.0,0.0001,2]
[399448065,1766363438501,-151.0,0.0001,2]
[399448066,1766363438511,-151.0,0.0001,2]
[399448067,1766363438520,-151.0,0.0001,2]
[399448068,1766363438530,-151.0,0.0001,2]
[399448069,1766363438539,-151.0,0.0001,2]
[399448070,1766363438549,-151.0,0.0001,2]
[399448071,1766363438559,-151.0,0.0001,2]
[399448072,1766363438576,-151.0,0.0001,2]
[399448073,1766363438590,-151.0,0.0001,2]
[399448074,1766363438600,-151.0,0.0001,2]
[399448075,1766363438610,-151.0,0.0001,2]
[399448076,1766363438622,-151.0,0.0001,2]
[399448077,1766363438632,-151.0,0.0001,2]
[399448078,1766363438641,-500.0,0.0001,2]
[399448079,1766363438651,-2234.03011894,0.0001,2]
[399448080,1766363438661,-166.66,0.0001008,2]
[399448081,1766363438671,-2127.57,0.00010102,2]
[399448082,1766363438681,-500.0,0.00010274,2]
[399448083,1766363438692,-1680.0,0.00010279,2]
[399448084,1766363438702,-250.0,0.0001028,2]
[399448085,1766363438711,-221.31372828,0.0001028,2]
[399448086,1766363438722,-813.0,0.0001028,2]
[399448087,1766363438731,-420.0,0.0001028,2]
[399448088,1766363438741,-420.0,0.0001028,2]
[399448089,1766363438751,-255.0,0.0001028,2]
[399448090,1766363438761,-2127.57,0.00010376,2]
[399448091,1766363438771,-166.66,0.00010393,2]
[399448092,1766363438780,-1283.44242147,0.00010399,3]
[399448093,1766363438794,-150.0,0.00010433,2]
[399448094,1766363438804,-215.49,0.00010436,2]
[399448095,1766363438814,-3638.37,0.00010453,2]
[399448096,1766363438824,-500.0,0.00010548,2]
[399448097,1766363438834,-1600.0,0.00010555,2]
[399448098,1766363438844,-2127.57,0.0001065,2]
[399448099,1766363438854,-166.66,0.00010705,2]
[399448100,1766363438864,-1752.9056743,0.00010755,2]
[399448101,1766363438875,-15776.1510687,0.0001076,2]
[399448102,1766363438885,-151.0,0.00010788,2]
[399448103,1766363438896,-20392.7273,0.00010791,2]
[399448104,1766363438906,-1000.0,0.00010791,2]
[399448105,1766363438917,-500.0,0.00010822,2]
[399448106,1766363438926,-1357.66229389,0.000109,2]
[399448107,1766363438936,-1357.66229382,0.000109,2]
[399448108,1766363438946,-2127.57,0.00010924,2]
[399448109,1766363438956,-1000.0,0.00010953,2]
[399448110,1766363438966,-8879.16,0.00010959,2]
[399448111,1766363438977,-150.0,0.00010959,2]
[399448112,1766363438991,-999.0,0.00010959,3]
[399448113,1766363439001,-9757.6394018,0.00010986,2]
[399448115,1766363439011,-253755.0530296,0.00010989,2]
[399448117,1766363439022,-5531.73266005,0.00011,2]
[399448119,1766363439032,-166.66,0.00011017,2]
[399448121,1766363439042,-391.1261238,0.00011061,2]
[399448123,1766363439052,-3520.1351145,0.00011064,2]
[399448125,1766363439062,-500.0,0.00011096,2]
[399448127,1766363439072,-42835.73625809,0.00011099,2]
[399448129,1766363439083,-42835.73625802,0.00011099,2]
[399448131,1766363439096,-27362.40699479,0.00011099,2]
[399448133,1766363439107,-27362.40699477,0.00011099,2]
[399448135,1766363439118,-27362.40699477,0.00011099,2]
[399448137,1766363439130,-42835.73625802,0.00011115,2]
[399448139,1766363439140,-2127.57,0.00011198,2]
[399448141,1766363439149,-2177.2236423,0.00011305,2]
[399448143,1766363439160,-2351.0,0.00011307,2]
[399448145,1766363439172,-587.0,0.00011308,2]
[399448147,1766363439184,-587.0,0.00011308,2]
[399448149,1766363439194,-433.0,0.00011308,2]
[399448151,1766363439203,-56620.4056209,0.00011308,2]
[399448153,1766363439212,-500.0,0.0001137,2]
[399448155,1766363439222,-2127.57,0.00011472,2]
[399448157,1766363439232,-3240.0,0.00011507,2]
[399448159,1766363439241,-27362.40699477,0.00011568,2]
[399448161,1766363439251,-1357.66229382,0.00011583,2]
[399448163,1766363439260,-500.0,0.00011644,2]
[399448165,1766363439270,-250.0,0.00011654,2]
[399448167,1766363439280,-1600.0,0.00011728,2]
[399448169,1766363439290,-2127.57,0.00011746,2]
[399448171,1766363439301,-500.0,0.00011918,2]
[399448173,1766363439310,-42835.73625802,0.00011944,2]
[399448176,1766363439321,-5927.98541634,0.00012,2]
[399448178,1766363439330,-2127.57,0.0001202,2]
[399448179,1766363439340,-356.59,0.00012145,2]
[399448182,1766363439350,-500.0,0.00012192,2]
[399448184,1766363439360,-2127.57,0.00012294,2]
[399448185,1766363439369,-18572.35,0.00012299,2]
[399448188,1766363439380,-27362.40699477,0.00012305,2]
[399448190,1766363439390,-384.43,0.0001231,2]
[399448192,1766363439399,-1000.0,0.00012322,2]
[399448194,1766363439409,-3292.0,0.00012437,2]
[399448196,1766363439418,-823.0,0.00012439,2]
[399448198,1766363439428,-710.0,0.00012439,2]
[399448200,1766363439437,-736.0,0.00012439,2]
[399448202,1766363439446,-500.0,0.00012466,2]
[399448204,1766363439456,-2127.57,0.00012568,2]
[399448206,1766363439468,-1357.66229382,0.00012646,2]
[399448208,1766363439478,-285.46,0.00012693,2]
[399448210,1766363439488,-500.0,0.0001274,2]
[399448212,1766363439498,-42835.73625802,0.00012774,2]
[399448214,1766363439510,-1864.83,0.00012798,2]
[399448216,1766363439520,-2127.57,0.00012842,2]
[399448218,1766363439530,-1600.0,0.000129,2]
[399448220,1766363439541,-129043.6888462,0.0001299,2]
[399448222,1766363439552,-4412.45542403,0.00013,2]
[399448224,1766363439563,-309.22801739,0.00013014,2]
[399448226,1766363439573,-27362.40699477,0.00013043,2]
[399448228,1766363439584,-5328.33632405,0.0001305,2]
[399448230,1766363439594,-2127.57,0.00013116,2]
[399448233,1766363439612,-2127.57,0.0001339,2]
[399448235,1766363439627,-1000.0,0.000135,2]
[399448237,1766363439638,-42835.73625802,0.00013603,2]
[399448239,1766363439648,-500.0,0.00013643,2]
[399448241,1766363439658,-500.0,0.00013643,2]
[399448243,1766363439670,-167.14597224,0.00013643,2]
[399448245,1766363439680,-535.22474582,0.00013643,2]
[399448247,1766363439692,-500.0,0.00013643,2]
[399448249,1766363439702,-501.40165484,0.00013643,2]
[399448251,1766363439713,-500.0,0.00013643,2]
[399448253,1766363439723,-500.0,0.00013643,2]
[399448254,1766363439733,-161.51413254,0.00013643,2]
[399448257,1766363439743,-500.25022933,0.00013643,2]
[399448259,1766363439753,-500.0,0.00013643,2]
[399448260,1766363439762,-500.0,0.00013643,2]
[399448263,1766363439780,-500.0,0.00013643,2]
[399448266,1766363439793,-500.0,0.00013643,2]
[399448268,1766363439804,-500.0,0.00013643,2]
[399448270,1766363439815,-500.0,0.00013643,2]
[399448272,1766363439825,-500.0,0.00013643,2]
[399448274,1766363439834,-235.55154497,0.00013643,2]
[399448276,1766363439844,-500.0,0.00013643,2]
[399448278,1766363439854,-500.0,0.00013643,2]
[399448280,1766363439864,-500.0,0.00013643,2]
[399448282,1766363439878,-484.06013596,0.00013643,2]